{"text_format":"1","workbook":"xlsx","n_sheets":5,"sheets":["本ツールの取扱説明書","項目説明","保険申込書・枝番(0)","別添","コード一覧"],"not_rendered":{"charts":0,"images":5,"macros":1,"external_links":0,"defined_names":20,"comments":0,"pivot_tables":0},"unopened":[],"bounds":{"document_bytes":16777216,"sheet_cells":100000,"rows_first":2000,"rows_last":500,"rows_between":2000,"halvings":0,"cell_chars":16384,"cell_head_chars":4096},"cells_cut":0,"cells_raw":0,"read":"whole","date_system":"1900"}

{"sheet":"本ツールの取扱説明書","index":0,"n_rows":52,"n_cols":14,"rows_kept":52,"cut":false,"hidden":false,"merged":[[51,13,51,33],[55,1,55,33],[45,1,45,33],[46,1,46,33],[47,1,47,33],[48,13,48,33],[49,13,49,33],[50,13,50,33],[54,13,54,33],[53,13,53,33],[52,13,52,33],[44,13,44,33],[33,13,33,33],[34,13,34,33],[35,13,35,33],[36,13,36,33],[37,1,37,33],[38,1,38,33],[39,13,39,33],[40,13,40,33],[41,13,41,33],[42,13,42,33],[43,13,43,33],[32,13,32,33],[21,1,21,33],[22,1,22,33],[23,13,23,33],[24,13,24,33],[25,13,25,33],[26,13,26,33],[27,13,27,33],[28,13,28,33],[29,1,29,33],[30,1,30,33],[31,13,31,33],[20,13,20,33],[9,13,9,33],[10,13,10,33],[11,13,11,33],[12,13,12,33],[13,1,13,33],[14,1,14,33],[15,13,15,33],[16,13,16,33],[17,13,17,33],[18,13,18,33],[19,13,19,33],[8,13,8,33],[2,1,2,33],[3,1,3,33],[5,1,5,33],[6,1,6,33],[7,13,7,33]]}
[]
[]
[null,"はじめに"]
[null,"このファイルは、スワップ取引保険の保険申込みの書類作成ツールです。以下に、入力手順および保険申込みの流れについてご説明します。"]
[]
[null,"書類作成の流れ"]
[]
[null,null,null,null,null,null,null,null,null,null,null,null,null,"・内諾書に従い、保険申込内容を入力してください。"]
[null,null,null,null,null,null,null,null,null,null,null,null,null,"・コード入力（国コード等）は必要に応じてコード一覧を参照してください。"]
[null,null,null,null,null,null,null,null,null,null,null,null,null,"・複数枝の場合は「枝追加」ボタンを用いて保険申込書シートを複製後"]
[null,null,null,null,null,null,null,null,null,null,null,null,null,"　追加する枝の内容を入力してください。"]
[]
[]
[]
[]
[null,null,null,null,null,null,null,null,null,null,null,null,null,"・保険申込みに際し、再保険会社等への情報開示に係る事前協議依頼書"]
[null,null,null,null,null,null,null,null,null,null,null,null,null,"　を記入してください。"]
[null,null,null,null,null,null,null,null,null,null,null,null,null,"・保険申込書が複数枝であっても、１つの記入で結構です。"]
[]
[]
[]
[]
[]
[null,null,null,null,null,null,null,null,null,null,null,null,null,"・入力が完了したら保険申込書シート右側の【入力内容確認】ボタンをクリッ"]
[null,null,null,null,null,null,null,null,null,null,null,null,null,"　クして確認してください。エラーの場合、メッセージに従って修正してください。"]
[null,null,null,null,null,null,null,null,null,null,null,null,null,"　　　　　※エラーが解消しない限り次のステップに進めません。"]
[null,null,null,null,null,null,null,null,null,null,null,null,null,"　　　　　　なお、必要最低限の項目のみチェックします。ご留意ください。"]
[]
[]
[]
[]
[null,null,null,null,null,null,null,null,null,null,null,null,null,"・申込書類一式を印刷する場合は保険申込書シート右側の【申込書類印刷】"]
[null,null,null,null,null,null,null,null,null,null,null,null,null,"　ボタンをクリックしてください。電子申請を利用される場合は、不要です。"]
[null,null,null,null,null,null,null,null,null,null,null,null,null,"　　　　　　※印刷対象シート：保険申込書、別添"]
[null,null,null,null,null,null,null,null,null,null,null,null,null,"・各シートを個別に印刷する場合は、通常の手順で印刷してください。"]
[null,null,null,null,null,null,null,null,null,null,null,null,null,"　　　　　　※印刷後、代表者の押印を忘れずにお願いします。"]
[]
[]
[]
[null,null,null,null,null,null,null,null,null,null,null,null,null,"・このファイルを保存してください。"]
[]
[]
[]
[]
[]
[]
[null,"保険申込の流れ"]
[]
[null,null,null,null,null,null,null,null,null,null,null,null,null,"●上記５で保存したファイルを電子申請にて送付してください。"]
[null,null,null,null,null,null,null,null,null,null,null,null,null,"●郵送が必要となるお客様は次の手順でお申込み下さい。"]
[null,null,null,null,null,null,null,null,null,null,null,null,null,"　・上記４で印刷および押印した書類一式をNEXIまで郵送してください。"]
[null,null,null,null,null,null,null,null,null,null,null,null,null,"　・上記５で保存したファイルをNEXI担当者まで電子メールで送付してください。"]

{"sheet":"項目説明","index":1,"n_rows":48,"n_cols":6,"rows_kept":48,"cut":false,"hidden":false,"merged":[[47,4,47,5],[46,4,46,5],[21,4,21,5],[22,4,22,5],[40,4,40,5],[41,4,41,5],[45,4,45,5],[44,4,44,5],[42,4,42,5],[43,4,43,5],[23,1,23,5],[37,3,37,6],[33,3,33,6],[34,1,34,5],[24,4,24,5],[25,0,31,1],[19,4,19,5],[20,4,20,5],[17,4,17,5],[18,4,18,5],[39,4,39,5],[38,4,38,5],[25,4,25,5],[26,4,26,5],[27,4,27,5],[28,4,28,5],[29,4,29,5],[30,4,30,5],[31,4,31,5],[14,4,14,5],[16,1,16,5],[13,4,13,5],[12,4,12,5],[1,3,1,6],[2,1,2,5],[3,4,3,5],[4,4,4,5],[5,4,5,5],[6,4,6,5],[7,4,7,5],[8,4,8,5],[9,1,9,5],[10,4,10,5],[11,4,11,5],[15,4,15,5]]}
[]
[null,null,null,"※下方に各シートに表示されるボタンの説明があります。"]
[null,"申込人等の内容"]
[null,null,null,"申込年月日","・書類を提出する日です。\n・YYYY/MM/DD形式で記入ください。"]
[null,null,null,"申込人","・申込者の保険利用者コード（シッパーコード）です。コード９桁を記入ください。\n・下段に住所、企業名および氏名を記入ください。\n・電子申請の場合は、代表者印は不要です。紙申請の場合は代表者印（実印）を押印してください。印がない場合は代表者のサイン、また代表者について、代理人の登録を頂いている場合は当該代理人でかまいません。被保険者、保険金受取人についても同様です。"]
[null,null,null,"被保険者","・日本に本店があり、日本国内または海外の支店からブッキングされる場合、本店の情報を入力してください。申込人と同一の場合は、記名（押印）は不要です。氏名欄下の□を✔してください。\n・被保険者の保険利用者コード（シッパーコード）です。コード９桁を入力してください。\n・下段に住所、企業名および氏名を入力してください。"]
[null,null,null,"保険金受取人","・日本に本店があり、日本国内または海外の支店からブッキングされる場合、本店の情報を入力してください。被保険者と同一の場合は、記名（押印）は不要です。氏名欄下の□を✔してください。\n・保険金受取人の保険利用者コード（シッパーコード）です。コード９桁を入力してください。\n・下段に住所、企業名および氏名を入力してください。"]
[null,null,null,"内諾の内容\n　日付","・内諾書が発行された日です。\n・内諾書発行日をYYYY/MM/DD形式で記入ください。"]
[null,null,null,"内諾の内容\n　内諾番号","・内諾書の番号です。\n・内諾書に記載されている内諾番号を記入ください。\n・数字８桁（年度下２桁＋一連番号６桁）を続けて記入ください。\n　ハイフン\"-\"は入力しないでください。\n　［例］　内諾番号が18-400001の場合、18400001と記入します。"]
[null,"スワップ取引の内容"]
[null,null,null,"スワップ取引の相手方の名称・住所","・スワップ取引の相手方です。\n・海外商社名簿の登録通りにバイヤーコード、名称、住所および住所コードを記入ください。海外商社名簿に登録されていない場合には、事前に登録をお願いします。\n　ハイフン\"-\"は入力しないでください。"]
[null,null,null,"スワップ取引の相手方の所在国又は地域","・スワップ取引の相手方の所在する国又は地域です。\n・コード一覧を参照し該当するコードを記入ください。"]
[null,null,null,"スワップ取引成立日\n(コンファメーション成立日)","・スワップ取引のコンファメーション成立日を記入ください。\n・分割実行の場合でも一番古いコンファメーション成立日を記入ください。"]
[null,null,null,"最終金利交換日","・約定済スワップ取引の一番遅い金利交換日を記入ください。"]
[null,null,null,"事業地国","・事業地国又は地域です。\n・スワップ取引の相手方の所在国と事業地国が同じである場合は、上記と同じ□を✓してください。異なる場合は、コード一覧を参照し該当するコードを記入ください。\n"]
[null,null,null,"金利スワップ取引最大損失予定額","・コンファメーション記載の通貨コードとスワップ想定元本を記入ください。"]
[null,"保険契約内容"]
[null,null,null,"保険価額","・記入は不要です。関連項目の記入内容にもとづき自動算出します。"]
[null,null,null,"被保険者引受上限額","・同一の事業に対するお客様の引受上限額を記入ください。\n・見出しの（）に金利スワップ取引最大損失予定額の通貨コードが表示されます。"]
[null,null,null,"関連融資契約全体における引受上限額","・同一の事業全体における引受上限額を記入ください。\n・見出しの（）に金利スワップ取引最大損失予定額の通貨コードが表示されます。\n"]
[null,null,null,"換算率","・スワップ取引のコンファメーション成立日レートを記入ください。\n・分割実行の場合でも一番古いコンファメーション成立日を記入ください。"]
[null,null,null,"てん補危険及び付保率","・てん補危険の□を✔し、付保率を記入ください。\n"]
[null,null,null,"特約","・ご希望のオプション特約の□を✔してください。その他の特約を付帯する場合は、その他の□を✓し、特約名を記入ください。"]
[null,"添付書類他"]
[null,null,null,"添付書類","・保険申込みにあたり、締結済みのISDAマスターアグリーメント、ISDAスケジュール、コンファメーションを添付し、ずべての□に✔してください。"]
[null,null,null,"他の保険契約","・当該資金貸付について本保険と同種の危険をてん補する他の保険契約の有無について該当する箇所を選択し、有の場合は保険契約の名称を記入ください。"]
[null,null,null,"損失を受けるおそれのある重要な事実","・損失を受けるおそれのある重要な事実の有無について該当する□を✔し、その内容を記入ください。"]
[null,null,null,"関連融資契約情報（証券番号）","・同一の事業に対する貿易保険の保険種類の□に✓し、証券番号を記入ください。✓した貸付契約の保険証券が発行されていないため証券番号を記入できない場合は、未定（新規申込）□に✓してください。"]
[null,null,null,"関連融資契約情報","・同一の事業に対する貿易代金貸付保険または海外事業資金貸付保険の貸付契約の契約締結日および名称を記入ください。"]
[null,null,null,"連絡先","・NEXIからこの申込みに関する問い合わせを受ける担当者の情報です。\n・保険申込みのご担当者の担当部課名、担当者名、電話番号およびE-mailをすべて記入ください。"]
[null,null,null,"保険証券・請求書送付先","・上記連絡先と異なる場合（例：担当者が異なる場合等）に記入ください。"]
[null,null,null,"備考欄（一般用）","・複数通貨等、留意点がある場合に記入ください。保証人がいる場合は保証人の名称・住所、バイヤーコード、保証国又は地域を記入ください。"]
[]
[]
[null,"再保険会社等への情報開示に係る事前協議の依頼"]
[null,null,null,"依頼の理由",null,"・依頼の理由について、いずれかの□に✓してください。\n・その他の□に✓した場合は、その理由を記入ください。"]
[]
[]
[null,null,null,null,"・シート切替えのボタンです。\n・クリックすると項目説明シート（このシート）を開きます。"]
[null,null,null,null,"・シート切替えのボタンです。\n・クリックすると保険申込書・枝番(n)シートを開きます。(n)は枝番を示します。複数のシートが存在する場合は、最大枝番のシートを開きます。"]
[null,null,null,null,"・シート切替えのボタンです。\n・クリックすると別添シートを開きます。"]
[null,null,null,null,"・シート切替えのボタンです。\n・クリックするとコード一覧シートを開きます。"]
[null,null,null,null,"・入力内容を確認するボタンです。\n・保険申込書・枝番(n)および別添の入力チェックを行い、入力エラーが検出された場合はエラーメッセージを表示します。\n・全てのチェックが完了すると、二つのシートは入力できなくなります。"]
[null,null,null,null,"・保険申込書・枝番(n)および別添の全てを印刷するボタンです。"]
[null,null,null,null,"・NEXIが利用するボタンです。お客様は利用できません。"]
[null,null,null,null,"・入力内容確認後、保険申込書・枝番(n)および別添シートを入力可能な状態へ戻すボタンです。"]
[null,null,null,null,"・枝を追加するボタンです。\n・保険申込書・枝番(n)は枝ごとに入力します。このボタンをクリックすると最大枝番のシートの右横に新たな枝のシートが作成されます。"]
[null,null,null,null,"・枝を削除するボタンです。\n・このボタンをクリックすると入力中のシートが削除されます。削除後元に戻すことはできませんので注意してください。"]

{"sheet":"保険申込書・枝番(0)","index":2,"n_rows":126,"n_cols":42,"rows_kept":126,"cut":false,"hidden":false,"merged":[[47,13,47,41],[44,1,47,12],[26,3,27,9],[26,10,27,16],[25,7,25,9],[25,10,25,34],[26,26,27,32],[26,33,27,35],[54,1,54,41],[28,3,28,41],[29,3,29,4],[29,5,29,9],[30,3,30,19],[31,20,31,29],[30,20,30,29],[30,30,30,41],[31,30,31,41],[29,10,29,41],[45,13,45,16],[43,1,43,12],[40,8,40,40],[45,36,45,38],[45,30,45,32],[38,5,38,9],[55,1,59,41],[49,17,49,21],[49,22,49,24],[49,25,49,29],[49,30,49,32],[49,33,49,41],[50,1,51,12],[50,13,50,41],[51,13,51,41],[48,1,49,12],[48,13,48,16],[48,17,48,29],[48,30,48,32],[48,33,48,41],[49,13,49,16],[52,1,52,12],[52,13,52,41],[4,1,4,41],[7,30,7,33],[7,34,7,39],[8,11,8,14],[10,3,10,5],[10,6,10,19],[11,3,11,5],[11,6,11,18],[8,2,8,10],[9,3,9,5],[9,6,9,19],[15,3,15,5],[15,6,15,19],[16,27,16,39],[14,27,14,40],[15,27,15,40],[24,3,25,6],[24,7,24,9],[24,10,24,35],[24,36,24,41],[21,10,21,16],[13,2,13,10],[13,23,13,32],[22,6,22,9],[22,10,22,16],[15,24,15,26],[25,36,25,41],[17,4,17,19],[17,25,17,41],[19,1,19,41],[21,1,22,5],[21,6,21,9],[24,1,29,2],[26,40,26,41],[27,36,27,41],[26,37,26,39],[13,11,13,14],[13,33,13,36],[16,3,16,5],[16,6,16,18],[16,24,16,26],[14,3,14,5],[14,6,14,19],[14,24,14,26],[26,17,27,25],[45,18,45,27],[45,39,45,41],[43,13,43,16],[43,17,43,22],[33,13,35,13],[33,28,35,28],[44,13,44,16],[44,18,44,24],[44,26,44,33],[33,17,33,19],[35,17,35,19],[33,24,33,26],[35,24,35,26],[32,29,32,41],[37,3,37,41],[41,1,41,12],[42,1,42,12],[42,13,42,16],[42,17,42,22],[44,35,44,41],[30,1,40,2],[31,3,31,4],[31,5,31,9],[42,23,42,41],[43,23,43,41],[32,3,32,12],[33,3,36,12],[31,10,31,19],[38,11,38,17],[38,19,38,41],[39,19,39,41],[32,13,32,28],[39,5,39,9]]}
[]
[null,"別紙様式"]
[]
[]
[null,"スワップ取引保険申込書"]
[]
[null,"株式会社日本貿易保険　御中"]
[null,null,null,null,null,null,null,null,null,null,null,null,null,null,null,null,null,null,null,null,null,null,null,null,null,null,null,null,null,null,"申込年月日"]
[null,null,"申込人 （保険利用者コード：",null,null,null,null,null,null,null,null,null,null,null,null,"）"]
[null,null,null,"住　所"]
[null,null,null,"企業名"]
[null,null,null,"氏　名",null,null,null,null,null,null,null,null,null,null,null,null,null,null,null,"印","（電子申請の場合は押印不要）"]
[]
[null,null,"被保険者 （保険利用者コード：",null,null,null,null,null,null,null,null,null,null,null,null,"）",null,null,null,null,null,null,null,"保険金受取人 （保険利用者コード：",null,null,null,null,null,null,null,null,null,null,null,null,null,"）"]
[null,null,null,"住　所",null,null,null,null,null,null,null,null,null,null,null,null,null,null,null,null,null,null,null,null,"住　所"]
[null,null,null,"企業名",null,null,null,null,null,null,null,null,null,null,null,null,null,null,null,null,null,null,null,null,"企業名"]
[null,null,null,"氏　名",null,null,null,null,null,null,null,null,null,null,null,null,null,null,null,"印",null,null,null,null,"氏　名",null,null,null,null,null,null,null,null,null,null,null,null,null,null,null,"印"]
[null,null,null,null,"申込人に同じ（記名・捺印不要）",null,null,null,null,null,null,null,null,null,null,null,null,null,null,null,null,null,null,null,null,"被保険者に同じ（記名・捺印不要）"]
[]
[null,"　スワップ取引保険約款及びこれに関する規定並びに内諾の内容を承認し、スワップ取引保険手続細則の規定に基づき、次のとおりスワップ取引保険を申し込みます。"]
[]
[null,"内諾の内容",null,null,null,null,"日付"]
[null,null,null,null,null,null,"内諾番号"]
[]
[null,"スワップ取引の内容",null,"スワップ取引\nの相手方及び\n相手方の所在国又は地域",null,null,null,"氏名"]
[null,null,null,null,null,null,null,"住所"]
[null,null,null,"スワップ取引成立日\n（コンファメーション成立日）",null,null,null,null,null,null,null,null,null,null,null,null,null,"最終金利交換日",null,null,null,null,null,null,null,null,null,null,null,null,null,null,null,"事業地国",null,null,null,"上記と同じ"]
[]
[null,null,null,"金利スワップ取引最大損失予定額"]
[null,null,null,"通貨",null,"選択する"]
[null,"保険契約内容",null,"保険価額",null,null,null,null,null,null,null,null,null,null,null,null,null,null,null,null,"被保険者引受上限額（   ）",null,null,null,null,null,null,null,null,null,"関連融資契約全体における引受上限額（   ）"]
[null,null,null,"通貨",null,"JPY"]
[null,null,null,"換算率",null,null,null,null,null,null,null,null,null,"てん補危険及び付保率"]
[null,null,null,null,null,null,null,null,null,null,null,null,null,null,null,null,null,"非常危険",null,null,null,null,null,null,"信用危険"]
[]
[null,null,null,null,null,null,null,null,null,null,null,null,null,null,null,null,null,1,null,null,null,null,null,null,"選択する"]
[]
[null,null,null,"特　　約"]
[null,null,null,null,null,"外貨建対応特約",null,null,null,null,null,"米ドル建保険特約"]
[null,null,null,null,null,"特別非常危険特約",null,null,null,null,null,"資源エネルギー保険特約"]
[null,null,null,null,null,"その他",null,"（",null,null,null,null,null,null,null,null,null,null,null,null,null,null,null,null,null,null,null,null,null,null,null,null,null,null,null,null,null,null,null,null,null,"）"]
[null,"添付書類",null,null,null,null,null,null,null,null,null,null,null,null,null,"ＩＳＤＡ マスターアグリーメント",null,null,null,null,null,null,null,null,null,"ＩＳＤＡ スケジュール",null,null,null,null,null,null,null,"コンファメーション"]
[null,"他の保険契約"]
[null,"損失を受けるおそれのある重要な事実",null,null,null,null,null,null,null,null,null,null,null,null,null,null,null,"その内容"]
[null,"関連融資契約情報",null,null,null,null,null,null,null,null,null,null,null,"　（保険種類）",null,null,null,null,"海外事業資金貸付保険",null,null,null,null,null,null,null,"貿易代金貸付（個別）保険",null,null,null,null,null,null,null,null,"貿易代金貸付（包括）保険"]
[null,null,null,null,null,null,null,null,null,null,null,null,null,"　（証券番号）",null,null,null,null,"未定（新規申込）",null,null,null,null,null,null,null,null,null,10,"－",null,null,null,"－",null,"－"]
[]
[]
[null,"連絡先",null,null,null,null,null,null,null,null,null,null,null,"担当部署名",null,null,null,null,null,null,null,null,null,null,null,null,null,null,null,null,"担当者名"]
[null,null,null,null,null,null,null,null,null,null,null,null,null,"電話",null,null,null,null,null,null,null,null," FAX",null,null,null,null,null,null,null,"E-mail"]
[null,"保険証券・請求書送付先",null,null,null,null,null,null,null,null,null,null,null,"（連絡先と異なる場合のみ記入してください）"]
[]
[null,"備考欄（一般用）"]
[]
[null,"＜再保険会社等への情報提供について＞"]
[null,"・貿易保険法第13条において、株式会社日本貿易保険（以下「日本貿易保険」）は、外国法人等を相手方として再保険を行うことを認められています。\n・日本貿易保険は、保険契約に関し、内諾申請者、保険契約者、被保険者、保険金受取人及び保険金請求人からご提供いただいた情報（以下「案件情報」）を、再保険契約の締結、再保険契約に基づく通知及び再保険金の請求のために必要な範囲で、保険契約締結後に再保険会社等（再保険ブローカーを含む。以下同じ。）へ提供することがあります。\n・日本貿易保険は、案件情報を再保険会社等へ提供する際は、当該再保険会社等との間で守秘義務契約を締結する等、情報の保護のために適切な措置を講じます。\n・日本貿易保険から再保険会社等への案件情報の提供に関し日本貿易保険との事前協議が必要な場合は、別添「再保険会社等への情報開示に係る事前協議依頼書」を保険申込書に添えてご提出ください。"]
[]
[]
[]
[]
[]
[]
[]
[]
[]
[]
[]
[]
[]
[]
[]
[]
[]
[]
[]
[]
[]
[]
[]
[]
[]
[]
[]
[]
[]
[]
[]
[]
[]
[]
[]
[]
[]
[]
[]
[]
[]
[]
[]
[]
[]
[]
[]
[]
[]
[]
[]
[]
[]
[]
[]
[]
[]
[]
[]
[]
[]
[]
[]
[]
[]
[]
[]
[]
["$AI$8:$AN$8,$L$9:$O$9,$G$10:$T$11,$G$12:$S$12,$L$14:$O$14,$AH$14:$AK$14,$G$15:$T$16,$AB$15:$AO$16,$G$17:$S$17,$AB$17:$AN$17,$K$22:$Q$23,$K$25:$AP$25,$K$26:$AJ$26,$K$27:$Q$28,$AA$27:$AG$28,$F$30:$AP$30,$F$32:$J$32,$U$32:$AP$32"]
["$N$48:$AP$48,$R$49:$AD$49,$R$50:$V$50,$Z$50:$AD$50,$AH$49:$AP$50,$N$52:$AP$53"]

{"sheet":"別添","index":3,"n_rows":25,"n_cols":4,"rows_kept":25,"cut":false,"hidden":false,"merged":[[5,0,5,35],[21,3,21,33]]}
[]
["別紙様式・別添"]
[]
[]
[]
["再保険会社等への情報開示に係る事前協議依頼書"]
[]
[]
[]
[]
["日本貿易保険が本件保険契約に係る案件情報を再保険会社又は再保険ブローカーに提供する場合は、"]
["保険契約者、被保険者又は保険金受取人と事前に協議いただくよう依頼します。"]
[]
[]
["上記依頼の理由は以下の通りです。　（いずれかに✓チェックください。）"]
[]
[null,null,null,"他の関係者と締結している秘密保持契約等において、日本貿易保険から再保険会社又は再保"]
[null,null,null,"険ブローカーへの案件情報の提供が制限又は禁止されているため。"]
[]
[null,null,null,"その他　（以下にご記入ください。）"]
[]
[null,null,null,""]
[]
[]
["　　　　　　　　　　　　　　　　　　　　　　　　　　　　　　　　　　　　　　　　　　　　　　　　　　　　　　　　　　　　　以上"]

{"sheet":"コード一覧","index":4,"n_rows":282,"n_cols":15,"rows_kept":282,"cut":false,"hidden":false,"merged":[[1,10,1,12],[1,1,1,4],[1,6,1,7],[1,13,1,14]]}
[]
[null,"通貨コード",null,null,null,null,"国コード",null,null,null,"通貨コード（保険価額）",null,null,"信用危険付保率"]
[null,"通貨名称","通貨コード","表示１","表示",null,"国コード","国名又は地域名称","表示",null,"通貨名称","通貨コード","表示","コード","内容"]
[null,"デフォルト","   ",null,"選択する",null,"   ","選択する",{"$f":"G4&\" \"&H4","v":"    選択する"},null,null,null,null,"デフォルト表示","選択する"]
[null,"アメリカドル","001","001 アメリカドル","USD",null,"103","大韓民国",{"$f":"G5&\" \"&H5","v":"103 大韓民国"},null,"円","015","JPY","95",0.95]
[null,"円","015","015 円","JPY",null,"104","北朝鮮",{"$f":"G6&\" \"&H6","v":"104 北朝鮮"},null,"アメリカドル","001","USD","90",0.9]
[null,"ユーロ","091","091 ユーロ","EUR",null,"105","中華人民共和国","105 中華人民共和国",null,null,null,null,"97.5",0.97499999999999998]
[null,"イギリスポンド","002","002 イギリスポンド","GBP",null,"106","台湾","106 台湾"]
[null,"カナダドル","003","003 カナダドル","CAD",null,"107","モンゴル","107 モンゴル"]
[null,"オーストラリアドル","016","016 オーストラリアドル","AUD",null,"108","香港","108 香港"]
[null,"人民元","017","017 人民元","CNY",null,"110","ベトナム","110 ベトナム"]
[null,"ニュージランドドル","018","018 ニュージランドドル","NZD",null,"111","タイ","111 タイ"]
[null,"香港ドル","019","019 香港ドル","HKD",null,"112","シンガポール","112 シンガポール"]
[null,"シンガポールドル","020","020 シンガポールドル","SGD",null,"113","マレーシア","113 マレーシア"]
[null,"インドルピー","029","029 インドルピー","INR",null,"116","ブルネイ","116 ブルネイ"]
[null,"インドネシアルピア","030","030 インドネシアルピー","IDR",null,"117","フィリピン","117 フィリピン"]
[null,"マレーシアリンギッド","032","032 マレーシアリンギッド","MYR",null,"118","インドネシア","118 インドネシア"]
[null,"フィリピンペソ","036","036 フィリピンペソ","PHP",null,"120","カンボジア","120 カンボジア"]
[null,"カンコクウォン","037","037 カンコクウォン","KRW",null,"121","ラオス","121 ラオス"]
[null,"タイワンドル","039","039 タイワンドル","TWD",null,"122","ミャンマー","122 ミャンマー"]
[null,"タイバーツ","040","040 タイバーツ","THB",null,"123","インド","123 インド"]
[null,"ベトナムドン","041","041 ベトナムドン","VND",null,"124","パキスタン","124 パキスタン"]
[null,"ロシアルーブル","049","049 ロシア　ルーブル","RUB",null,"125","スリランカ","125 スリランカ"]
[null,"バーレーンディナール","052","052 バハレーン　Ｄ","BHD",null,"126","モルディブ","126 モルディブ"]
[null,"ブラジルレアル","072","072 ブラジル　レアル","BRL",null,"127","バングラデシュ","127 バングラデシュ"]
[null,"ミナミアフリカランド","086","086 ミナミアフリカ　Ｒ","ZAR",null,"128","東ティモール","128 東ティモール"]
[null,null,null,null,null,null,"129","マカオ","129 マカオ"]
[null,null,null,null,null,null,"130","アフガニスタン","130 アフガニスタン"]
[null,null,null,null,null,null,"131","ネパール","131 ネパール"]
[null,null,null,null,null,null,"132","ブータン","132 ブータン"]
[null,null,null,null,null,null,"133","イラン","133 イラン"]
[null,null,null,null,null,null,"134","イラク","134 イラク"]
[null,null,null,null,null,null,"135","バーレーン","135 バーレーン"]
[null,null,null,null,null,null,"136","（旧）イエメン","136 （旧）イエメン"]
[null,null,null,null,null,null,"137","サウジアラビア","137 サウジアラビア"]
[null,null,null,null,null,null,"138","クウェート","138 クウェート"]
[null,null,null,null,null,null,"140","カタール","140 カタール"]
[null,null,null,null,null,null,"141","オマーン","141 オマーン"]
[null,null,null,null,null,null,"143","イスラエル","143 イスラエル"]
[null,null,null,null,null,null,"144","ヨルダン","144 ヨルダン"]
[null,null,null,null,null,null,"145","シリア","145 シリア"]
[null,null,null,null,null,null,"146","レバノン","146 レバノン"]
[null,null,null,null,null,null,"147","アラブ首長国連邦","147 アラブ首長国連邦"]
[null,null,null,null,null,null,"148","ガザ・エリコ","148 ガザ・エリコ"]
[null,null,null,null,null,null,"149","イエメン","149 イエメン"]
[null,null,null,null,null,null,"150","アゼルバイジャン","150 アゼルバイジャン"]
[null,null,null,null,null,null,"151","アルメニア","151 アルメニア"]
[null,null,null,null,null,null,"152","ウズベキスタン","152 ウズベキスタン"]
[null,null,null,null,null,null,"153","カザフスタン","153 カザフスタン"]
[null,null,null,null,null,null,"154","キルギス","154 キルギス"]
[null,null,null,null,null,null,"155","タジキスタン","155 タジキスタン"]
[null,null,null,null,null,null,"156","トルクメニスタン","156 トルクメニスタン"]
[null,null,null,null,null,null,"157","ジョージア","157 ジョージア"]
[null,null,null,null,null,null,"158","西岸・ガザ（パレスチ","158 西岸・ガザ（パレスチ"]
[null,null,null,null,null,null,"192","日本","192 日本"]
[null,null,null,null,null,null,"193","サウジアラビア・クウ","193 サウジアラビア・クウ"]
[null,null,null,null,null,null,"199","キプロス（船舶）","199 キプロス（船舶）"]
[null,null,null,null,null,null,"201","アイスランド","201 アイスランド"]
[null,null,null,null,null,null,"202","ノルウェー","202 ノルウェー"]
[null,null,null,null,null,null,"203","スウェーデン","203 スウェーデン"]
[null,null,null,null,null,null,"204","デンマーク","204 デンマーク"]
[null,null,null,null,null,null,"205","英国","205 英国"]
[null,null,null,null,null,null,"206","アイルランド","206 アイルランド"]
[null,null,null,null,null,null,"207","オランダ","207 オランダ"]
[null,null,null,null,null,null,"208","ベルギー","208 ベルギー"]
[null,null,null,null,null,null,"209","ルクセンブルク","209 ルクセンブルク"]
[null,null,null,null,null,null,"210","フランス","210 フランス"]
[null,null,null,null,null,null,"211","モナコ","211 モナコ"]
[null,null,null,null,null,null,"212","アンドラ","212 アンドラ"]
[null,null,null,null,null,null,"213","ドイツ",{"$f":"G70&\" \"&H70","v":"213 ドイツ"}]
[null,null,null,null,null,null,"214","（旧）東ドイツ","214 （旧）東ドイツ"]
[null,null,null,null,null,null,"215","スイス","215 スイス"]
[null,null,null,null,null,null,"216","アゾレス諸島（葡）","216 アゾレス諸島（葡）"]
[null,null,null,null,null,null,"217","ポルトガル","217 ポルトガル"]
[null,null,null,null,null,null,"218","スペイン","218 スペイン"]
[null,null,null,null,null,null,"219","ジブラルタル","219 ジブラルタル"]
[null,null,null,null,null,null,"220","イタリア","220 イタリア"]
[null,null,null,null,null,null,"221","マルタ","221 マルタ"]
[null,null,null,null,null,null,"222","フィンランド","222 フィンランド"]
[null,null,null,null,null,null,"223","ポーランド","223 ポーランド"]
[null,null,null,null,null,null,"224","ロシア","224 ロシア"]
[null,null,null,null,null,null,"225","オーストリア","225 オーストリア"]
[null,null,null,null,null,null,"226","（旧）チェコスロヴァ","226 （旧）チェコスロヴァ"]
[null,null,null,null,null,null,"227","ハンガリー","227 ハンガリー"]
[null,null,null,null,null,null,"228","セルビア","228 セルビア"]
[null,null,null,null,null,null,"229","アルバニア","229 アルバニア"]
[null,null,null,null,null,null,"230","ギリシャ","230 ギリシャ"]
[null,null,null,null,null,null,"231","ルーマニア","231 ルーマニア"]
[null,null,null,null,null,null,"232","ブルガリア","232 ブルガリア"]
[null,null,null,null,null,null,"233","キプロス","233 キプロス"]
[null,null,null,null,null,null,"234","トルコ","234 トルコ"]
[null,null,null,null,null,null,"235","エストニア","235 エストニア"]
[null,null,null,null,null,null,"236","ラトビア","236 ラトビア"]
[null,null,null,null,null,null,"237","リトアニア","237 リトアニア"]
[null,null,null,null,null,null,"238","ウクライナ","238 ウクライナ"]
[null,null,null,null,null,null,"239","ベラルーシ","239 ベラルーシ"]
[null,null,null,null,null,null,"240","モルドバ","240 モルドバ"]
[null,null,null,null,null,null,"241","クロアチア","241 クロアチア"]
[null,null,null,null,null,null,"242","スロベニア","242 スロベニア"]
[null,null,null,null,null,null,"243","ボスニア・ヘルツェゴ","243 ボスニア・ヘルツェゴ"]
[null,null,null,null,null,null,"244","北マケドニア","244 北マケドニア"]
[null,null,null,null,null,null,"245","チェコ","245 チェコ"]
[null,null,null,null,null,null,"246","スロバキア","246 スロバキア"]
[null,null,null,null,null,null,"247","モンテネグロ","247 モンテネグロ"]
[null,null,null,null,null,null,"248","コソボ","248 コソボ"]
[null,null,null,null,null,null,"270","チャネル諸島（ジャー","270 チャネル諸島（ジャー"]
[null,null,null,null,null,null,"271","チャネル諸島（ガ管区","271 チャネル諸島（ガ管区"]
[null,null,null,null,null,null,"280","リヒテンシュタイン","280 リヒテンシュタイン"]
[null,null,null,null,null,null,"281","バチカン","281 バチカン"]
[null,null,null,null,null,null,"282","サンマリノ","282 サンマリノ"]
[null,null,null,null,null,null,"283","（旧）ソビエト連邦","283 （旧）ソビエト連邦"]
[null,null,null,null,null,null,"284","（旧）チェコ地域","284 （旧）チェコ地域"]
[null,null,null,null,null,null,"285","（旧）スロヴァキア地","285 （旧）スロヴァキア地"]
[null,null,null,null,null,null,"299","マルタ（船舶）","299 マルタ（船舶）"]
[null,null,null,null,null,null,"301","グリーンランド（デ）","301 グリーンランド（デ）"]
[null,null,null,null,null,null,"302","カナダ","302 カナダ"]
[null,null,null,null,null,null,"303","サンピエール島・ミク","303 サンピエール島・ミク"]
[null,null,null,null,null,null,"304","アメリカ合衆国","304 アメリカ合衆国"]
[null,null,null,null,null,null,"305","メキシコ","305 メキシコ"]
[null,null,null,null,null,null,"306","グアテマラ","306 グアテマラ"]
[null,null,null,null,null,null,"307","ホンジュラス","307 ホンジュラス"]
[null,null,null,null,null,null,"308","ベリーズ","308 ベリーズ"]
[null,null,null,null,null,null,"309","エルサルバドル","309 エルサルバドル"]
[null,null,null,null,null,null,"310","ニカラグア","310 ニカラグア"]
[null,null,null,null,null,null,"311","コスタリカ","311 コスタリカ"]
[null,null,null,null,null,null,"312","パナマ","312 パナマ"]
[null,null,null,null,null,null,"313","パナマ運河地帯","313 パナマ運河地帯"]
[null,null,null,null,null,null,"314","バミューダ島（英）","314 バミューダ島（英）"]
[null,null,null,null,null,null,"315","バハマ","315 バハマ"]
[null,null,null,null,null,null,"316","ジャマイカ","316 ジャマイカ"]
[null,null,null,null,null,null,"317","タークス・カイコス諸","317 タークス・カイコス諸"]
[null,null,null,null,null,null,"319","バルバドス","319 バルバドス"]
[null,null,null,null,null,null,"320","トリニダード・トバコ","320 トリニダード・トバコ"]
[null,null,null,null,null,null,"321","キューバ",{"$f":"G134&\" \"&H134","v":"321 キューバ"}]
[null,null,null,null,null,null,"322","ハイチ","322 ハイチ"]
[null,null,null,null,null,null,"323","ドミニカ共和国","323 ドミニカ共和国"]
[null,null,null,null,null,null,"324","プエルトリコ（米）","324 プエルトリコ（米）"]
[null,null,null,null,null,null,"325","米領バージン諸島","325 米領バージン諸島"]
[null,null,null,null,null,null,"326","蘭領アンティル","326 蘭領アンティル"]
[null,null,null,null,null,null,"327","仏領西インド諸島","327 仏領西インド諸島"]
[null,null,null,null,null,null,"328","ケイマン諸島（英）","328 ケイマン諸島（英）"]
[null,null,null,null,null,null,"329","グレナダ","329 グレナダ"]
[null,null,null,null,null,null,"330","セントルシア","330 セントルシア"]
[null,null,null,null,null,null,"331","アンティグア・バーブ","331 アンティグア・バーブ"]
[null,null,null,null,null,null,"332","英領バージン諸島","332 英領バージン諸島"]
[null,null,null,null,null,null,"333","ドミニカ","333 ドミニカ"]
[null,null,null,null,null,null,"334","モンセラット（英）","334 モンセラット（英）"]
[null,null,null,null,null,null,"335","セントクリストファー","335 セントクリストファー"]
[null,null,null,null,null,null,"336","セントビンセント・グ","336 セントビンセント・グ"]
[null,null,null,null,null,null,"337","アンギラ（英）","337 アンギラ（英）"]
[null,null,null,null,null,null,"380","アルバ（蘭）","380 アルバ（蘭）"]
[null,null,null,null,null,null,"381","キュラソー（蘭）","381 キュラソー（蘭）"]
[null,null,null,null,null,null,"382","サバ（蘭）","382 サバ（蘭）"]
[null,null,null,null,null,null,"383","セント・マーチン（蘭","383 セント・マーチン（蘭"]
[null,null,null,null,null,null,"384","セント・マーチン（仏","384 セント・マーチン（仏"]
[null,null,null,null,null,null,"385","ボナイル（蘭）","385 ボナイル（蘭）"]
[null,null,null,null,null,null,"386","セント・ユースタチウ","386 セント・ユースタチウ"]
[null,null,null,null,null,null,"395","バルバドス（船舶）","395 バルバドス（船舶）"]
[null,null,null,null,null,null,"396","ケイマン諸島（船舶）","396 ケイマン諸島（船舶）"]
[null,null,null,null,null,null,"397","バミューダ・英（船舶","397 バミューダ・英（船舶"]
[null,null,null,null,null,null,"398","バハマ（船舶）","398 バハマ（船舶）"]
[null,null,null,null,null,null,"399","パナマ（船舶）","399 パナマ（船舶）"]
[null,null,null,null,null,null,"401","コロンビア","401 コロンビア"]
[null,null,null,null,null,null,"402","ベネズエラ","402 ベネズエラ"]
[null,null,null,null,null,null,"403","ガイアナ","403 ガイアナ"]
[null,null,null,null,null,null,"404","スリナム","404 スリナム"]
[null,null,null,null,null,null,"405","仏領ギアナ","405 仏領ギアナ"]
[null,null,null,null,null,null,"406","エクアドル","406 エクアドル"]
[null,null,null,null,null,null,"407","ペルー","407 ペルー"]
[null,null,null,null,null,null,"408","ボリビア","408 ボリビア"]
[null,null,null,null,null,null,"409","チリ","409 チリ"]
[null,null,null,null,null,null,"410","ブラジル","410 ブラジル"]
[null,null,null,null,null,null,"411","パラグアイ","411 パラグアイ"]
[null,null,null,null,null,null,"412","ウルグアイ","412 ウルグアイ"]
[null,null,null,null,null,null,"413","アルゼンチン","413 アルゼンチン"]
[null,null,null,null,null,null,"414","フォークランド（マル","414 フォークランド（マル"]
[null,null,null,null,null,null,"415","英領南極基地","415 英領南極基地"]
[null,null,null,null,null,null,"501","モロッコ","501 モロッコ"]
[null,null,null,null,null,null,"502","セウタ及びメリリャ（","502 セウタ及びメリリャ（"]
[null,null,null,null,null,null,"503","アルジェリア","503 アルジェリア"]
[null,null,null,null,null,null,"504","チュニジア","504 チュニジア"]
[null,null,null,null,null,null,"505","リビア","505 リビア"]
[null,null,null,null,null,null,"506","エジプト","506 エジプト"]
[null,null,null,null,null,null,"507","スーダン","507 スーダン"]
[null,null,null,null,null,null,"508","西サハラ","508 西サハラ"]
[null,null,null,null,null,null,"509","モーリタニア","509 モーリタニア"]
[null,null,null,null,null,null,"510","セネガル","510 セネガル"]
[null,null,null,null,null,null,"511","ガンビア","511 ガンビア"]
[null,null,null,null,null,null,"512","ギニアビサウ","512 ギニアビサウ"]
[null,null,null,null,null,null,"513","ギニア","513 ギニア"]
[null,null,null,null,null,null,"514","シエラレオネ","514 シエラレオネ"]
[null,null,null,null,null,null,"515","リベリア","515 リベリア"]
[null,null,null,null,null,null,"516","コートジボワール","516 コートジボワール"]
[null,null,null,null,null,null,"517","ガーナ","517 ガーナ"]
[null,null,null,null,null,null,"518","トーゴ","518 トーゴ"]
[null,null,null,null,null,null,"519","ベナン","519 ベナン"]
[null,null,null,null,null,null,"520","マリ","520 マリ"]
[null,null,null,null,null,null,"521","ブルキナファソ",{"$f":"G198&\" \"&H198","v":"521 ブルキナファソ"}]
[null,null,null,null,null,null,"522","カーボベルデ","522 カーボベルデ"]
[null,null,null,null,null,null,"523","カナリア諸島（西）","523 カナリア諸島（西）"]
[null,null,null,null,null,null,"524","ナイジェリア","524 ナイジェリア"]
[null,null,null,null,null,null,"525","ニジェール","525 ニジェール"]
[null,null,null,null,null,null,"526","ルワンダ","526 ルワンダ"]
[null,null,null,null,null,null,"527","カメルーン","527 カメルーン"]
[null,null,null,null,null,null,"528","チャド","528 チャド"]
[null,null,null,null,null,null,"529","中央アフリカ共和国","529 中央アフリカ共和国"]
[null,null,null,null,null,null,"530","赤道ギニア","530 赤道ギニア"]
[null,null,null,null,null,null,"531","ガボン","531 ガボン"]
[null,null,null,null,null,null,"532","コンゴ共和国","532 コンゴ共和国"]
[null,null,null,null,null,null,"533","コンゴ民主共和国","533 コンゴ民主共和国"]
[null,null,null,null,null,null,"534","ブルンジ","534 ブルンジ"]
[null,null,null,null,null,null,"535","アンゴラ","535 アンゴラ"]
[null,null,null,null,null,null,"536","サントメ・プリンシペ","536 サントメ・プリンシペ"]
[null,null,null,null,null,null,"537","セントヘレナ島（英）","537 セントヘレナ島（英）"]
[null,null,null,null,null,null,"538","エチオピア","538 エチオピア"]
[null,null,null,null,null,null,"539","ジブチ","539 ジブチ"]
[null,null,null,null,null,null,"540","ソマリア","540 ソマリア"]
[null,null,null,null,null,null,"541","ケニア","541 ケニア"]
[null,null,null,null,null,null,"542","ウガンダ","542 ウガンダ"]
[null,null,null,null,null,null,"543","タンザニア","543 タンザニア"]
[null,null,null,null,null,null,"544","セーシェル","544 セーシェル"]
[null,null,null,null,null,null,"545","モザンビーク","545 モザンビーク"]
[null,null,null,null,null,null,"546","マダガスカル","546 マダガスカル"]
[null,null,null,null,null,null,"547","モーリシャス","547 モーリシャス"]
[null,null,null,null,null,null,"548","レユニオン（仏）","548 レユニオン（仏）"]
[null,null,null,null,null,null,"549","ジンバブエ","549 ジンバブエ"]
[null,null,null,null,null,null,"550","ナミビア","550 ナミビア"]
[null,null,null,null,null,null,"551","南アフリカ共和国","551 南アフリカ共和国"]
[null,null,null,null,null,null,"552","レソト","552 レソト"]
[null,null,null,null,null,null,"553","マラウイ","553 マラウイ"]
[null,null,null,null,null,null,"554","ザンビア","554 ザンビア"]
[null,null,null,null,null,null,"555","ボツワナ","555 ボツワナ"]
[null,null,null,null,null,null,"556","エスワティニ","556 エスワティニ"]
[null,null,null,null,null,null,"557","英領インド洋地域","557 英領インド洋地域"]
[null,null,null,null,null,null,"558","コモロ","558 コモロ"]
[null,null,null,null,null,null,"559","エリトリア","559 エリトリア"]
[null,null,null,null,null,null,"560","南スーダン共和国","560 南スーダン共和国"]
[null,null,null,null,null,null,"580","マディラ諸島（葡）","580 マディラ諸島（葡）"]
[null,null,null,null,null,null,"598","マディラ（葡）（船舶","598 マディラ（葡）（船舶"]
[null,null,null,null,null,null,"599","リベリア（船舶）","599 リベリア（船舶）"]
[null,null,null,null,null,null,"601","オーストラリア","601 オーストラリア"]
[null,null,null,null,null,null,"602","パプアニューギニア","602 パプアニューギニア"]
[null,null,null,null,null,null,"605","その他オーストラリア","605 その他オーストラリア"]
[null,null,null,null,null,null,"606","ニュージーランド","606 ニュージーランド"]
[null,null,null,null,null,null,"607","クック諸島","607 クック諸島"]
[null,null,null,null,null,null,"608","トケラウ諸島（ニュー","608 トケラウ諸島（ニュー"]
[null,null,null,null,null,null,"609","ニウェ島（ニュージー","609 ニウェ島（ニュージー"]
[null,null,null,null,null,null,"610","サモア独立国","610 サモア独立国"]
[null,null,null,null,null,null,"611","バヌアツ","611 バヌアツ"]
[null,null,null,null,null,null,"612","フィジー","612 フィジー"]
[null,null,null,null,null,null,"613","ソロモン","613 ソロモン"]
[null,null,null,null,null,null,"614","トンガ","614 トンガ"]
[null,null,null,null,null,null,"615","キリバス","615 キリバス"]
[null,null,null,null,null,null,"616","ピトケアン諸島（英）","616 ピトケアン諸島（英）"]
[null,null,null,null,null,null,"617","ナウル","617 ナウル"]
[null,null,null,null,null,null,"618","ニューカレドニア（仏","618 ニューカレドニア（仏"]
[null,null,null,null,null,null,"619","仏領ポリネシア","619 仏領ポリネシア"]
[null,null,null,null,null,null,"620","グァム（米）","620 グァム（米）"]
[null,null,null,null,null,null,"621","米領サモア","621 米領サモア"]
[null,null,null,null,null,null,"622","米領オセアニア","622 米領オセアニア"]
[null,null,null,null,null,null,"623","マリアナ・マーシャル","623 マリアナ・マーシャル"]
[null,null,null,null,null,null,"624","ツバル",{"$f":"G262&\" \"&H262","v":"624 ツバル"}]
[null,null,null,null,null,null,"625","マーシャル諸島","625 マーシャル諸島"]
[null,null,null,null,null,null,"626","ミクロネシア","626 ミクロネシア"]
[null,null,null,null,null,null,"627","北マリアナ諸島（米）","627 北マリアナ諸島（米）"]
[null,null,null,null,null,null,"628","パラオ","628 パラオ"]
[null,null,null,null,null,null,"680","ノーフォーク島（豪）","680 ノーフォーク島（豪）"]
[null,null,null,null,null,null,"681","タヒチ（仏）","681 タヒチ（仏）"]
[null,null,null,null,null,null,"682","ケルマディック諸島（","682 ケルマディック諸島（"]
[null,null,null,null,null,null,"683","ミッドウェー諸島（米","683 ミッドウェー諸島（米"]
[null,null,null,null,null,null,"684","ソサエティ諸島（仏）","684 ソサエティ諸島（仏）"]
[null,null,null,null,null,null,"685","ウェーク島（米）","685 ウェーク島（米）"]
[null,null,null,null,null,null,"686","ワリス・フテュナ諸島","686 ワリス・フテュナ諸島"]
[null,null,null,null,null,null,"687","クリスマス島（豪）","687 クリスマス島（豪）"]
[null,null,null,null,null,null,"688","ココス諸島（豪）","688 ココス諸島（豪）"]
[null,null,null,null,null,null,"689","ジョンストン島（米）","689 ジョンストン島（米）"]
[null,null,null,null,null,null,"690","ツアモツ諸島（仏）","690 ツアモツ諸島（仏）"]
[null,null,null,null,null,null,"691","マルケサス諸島（仏）","691 マルケサス諸島（仏）"]
[null,null,null,null,null,null,"692","仏領ポリネシア","692 仏領ポリネシア"]
[null,null,null,null,null,null,"698","マーシャル諸島（船舶","698 マーシャル諸島（船舶"]
[null,null,null,null,null,null,"699","バヌアツ（船舶）","699 バヌアツ（船舶）"]
[null,null,null,null,null,null,"790","公海等","790 公海等"]